bitfinex/quotes_ETHUSD_20250930
["timestamp","ask_amount","ask_price","bid_price","bid_amount"]
[1759224371636,3.18679243,4175.8,4175.5,0.002]
[1759224371830,10.26617548,4175.6,4175.5,0.002]
[1759224372014,10.90218219,4175.6,4175.5,0.002]
[1759224373843,10.90218219,4175.6,4175.4,0.002]
[1759224373844,5.58692276,4175.5,4175.4,1e-08]
[1759224374058,10.86126444,4175.5,4175.4,1e-08]
[1759224375335,15.66057452,4175.5,4175.4,1e-08]
[1759224380172,8.23226444,4175.5,4175.4,1e-08]
[1759224380364,2.51492276,4175.5,4175.4,1e-08]
[1759224380570,5.35996982,4175.5,4175.4,1e-08]
[1759224380765,7.75996982,4175.5,4175.4,1e-08]
[1759224381171,5.35996982,4175.5,4175.4,1e-08]
[1759224381668,7.75996982,4175.5,4175.4,1e-08]
[1759224389061,7.75896982,4175.5,4175.4,1e-08]
[1759224390978,2.61604706,4175.5,4175.4,1e-08]
[1759224391179,7.75896982,4175.5,4175.4,1e-08]
[1759224392052,5.01096982,4175.5,4175.4,1e-08]
[1759224392255,7.75896982,4175.5,4175.4,1e-08]
[1759224395093,5.36404706,4175.5,4175.4,1e-08]
[1759224395258,5.36304706,4175.5,4175.4,1e-08]
[1759224395451,7.75796982,4175.5,4175.4,1e-08]
[1759224397189,5.36304706,4175.5,4175.4,1e-08]
[1759224398457,7.75796982,4175.5,4175.4,1e-08]
[1759224399159,5.01096982,4175.5,4175.4,1e-08]
[1759224399498,7.75796982,4175.5,4175.4,1e-08]
[1759224400000,2.61704706,4175.5,4175.4,1e-08]
[1759224400299,5.36404706,4175.5,4175.4,1e-08]
[1759224401093,2.61704706,4175.5,4175.4,1e-08]
[1759224401401,5.24404706,4175.5,4175.4,1e-08]
[1759224402301,7.63896982,4175.5,4175.4,1e-08]
[1759224402855,5.24404706,4175.5,4175.4,1e-08]
[1759224403059,7.63896982,4175.5,4175.4,1e-08]
[1759224404505,5.24404706,4175.5,4175.4,1e-08]
[1759224404999,7.63896982,4175.5,4175.4,1e-08]
[1759224409064,5.24404706,4175.5,4175.4,1e-08]
[1759224409265,7.63896982,4175.5,4175.4,1e-08]
[1759224414014,5.24404706,4175.5,4175.4,1e-08]
[1759224415521,0.001,4175.5,4175.4,1e-08]
[1759224415709,0.001,4175.5,4175.4,0.12000001]
[1759224415911,0.001,4175.5,4175.4,0.37170436]
[1759224418246,0.001,4175.5,4175.4,2.76668448]
[1759224418536,0.001,4175.5,4175.4,0.37170436]
[1759224418939,0.001,4175.5,4175.4,2.76668448]
[1759224419316,0.001,4175.5,4175.4,17.26668448]
[1759224420133,0.001,4175.5,4175.4,17.74860595]
[1759224432181,0.001,4175.5,4175.4,20.49260595]
[1759224439205,0.001,4175.5,4175.4,20.49160595]
[1759224442112,0.001,4175.5,4175.4,18.09662583]
[1759224442805,0.001,4175.5,4175.4,20.49160595]
[1759224448417,0.001,4175.5,4175.4,17.74860595]
[1759224448722,0.001,4175.5,4175.4,20.49160595]
[1759224449429,0.001,4175.5,4175.4,17.74860595]
[1759224449631,0.001,4175.5,4175.4,20.49060595]
[1759224449997,0.001,4175.5,4175.4,17.74860595]
[1759224450199,0.001,4175.5,4175.4,20.49060595]
[1759224450532,0.001,4175.5,4175.4,17.74860595]
[1759224450720,0.001,4175.5,4175.4,20.49060595]
[1759224451530,0.001,4175.5,4175.4,17.74860595]
[1759224454832,0.001,4175.5,4175.4,20.49060595]
[1759224462443,0.001,4175.5,4175.4,20.37060595]
[1759224463246,0.001,4175.5,4175.4,20.46661359]
[1759224464351,0.001,4175.5,4175.4,20.46561359]
[1759224472346,0.001,4175.5,4175.4,20.58561359]
[1759224474870,0.001,4175.5,4175.4,17.84461359]
[1759224475169,0.001,4175.5,4175.4,20.48860595]
[1759224478157,0.001,4175.5,4175.4,5.98860595]
[1759224478357,0.001,4175.5,4175.4,3.24860595]
[1759224478657,0.001,4175.5,4175.4,5.98860595]
[1759224479376,0.001,4175.5,4175.4,3.24860595]
[1759224479565,0.001,4175.5,4175.4,5.98860595]
[1759224480370,0.001,4175.5,4175.4,3.24860595]
[1759224480568,0.001,4175.5,4175.4,5.98860595]
[1759224481385,0.001,4175.5,4175.4,3.59362583]
[1759224481984,0.001,4175.5,4175.4,5.98860595]
[1759224482602,0.001,4175.5,4175.4,5.98760595]
[1759224483502,0.001,4175.5,4175.4,3.24860595]
[1759224483795,0.001,4175.5,4175.4,5.98760595]
[1759224485462,0.001,4175.5,4175.4,3.59262583]
[1759224485675,0.001,4175.5,4175.4,3.34092148]
[1759224486584,0.001,4175.5,4175.4,0.60192148]
[1759224486761,0.001,4175.5,4175.4,5.7359016]
[1759224487699,0.001,4175.5,4175.4,2.9969016]
[1759224487861,0.001,4175.5,4175.4,5.7359016]
[1759224489222,0.001,4175.5,4175.4,6.54920088]
[1759224489689,0.001,4175.5,4175.4,1.41522076]
[1759224489876,0.001,4175.5,4175.4,3.34092148]
[1759224490583,0.001,4175.5,4175.4,5.7359016]
[1759224490780,0.001,4175.5,4175.4,2.9969016]
[1759224490982,0.001,4175.5,4175.4,3.34092148]
[1759224491180,0.001,4175.5,4175.4,0.60192148]
[1759224491564,0.001,4175.5,4175.4,0.12000001]
[1759224492192,0.72117312,4175.5,4175.4,0.12000001]
[1759224496710,0.001,4175.5,4175.4,2.51498013]
[1759224496904,0.001,4175.5,4175.4,3.35209644]
[1759224497575,0.001,4175.5,4175.4,3.83013145]
[1759224498048,0.001,4175.5,4175.4,6.56813145]
[1759224499631,0.001,4175.5,4175.4,6.66414623]
[1759224507923,0.001,4175.5,4175.4,3.92614623]
[1759224508124,0.001,4175.5,4175.4,6.66314623]
[1759224511513,0.001,4175.5,4175.4,4.26816611]
[1759224511813,0.001,4175.5,4175.4,5.82602992]
[1759224512015,0.001,4175.5,4175.4,0.6940498]
[1759224512351,0.001,4175.5,4175.4,0.47803502]
[1759224512644,0.001,4175.5,4175.4,0.50198482]
[1759224516537,0.001,4175.5,4175.4,2.89696494]
[1759224517348,0.001,4175.5,4175.4,2.41892993]
[1759224519245,0.001,4175.5,4175.4,2.88664175]
[1759224519543,0.001,4175.5,4175.4,3.68871473]
[1759224522249,0.001,4175.5,4175.4,3.80871473]
[1759224524673,0.001,4175.5,4175.4,1.41373461]
[1759224524860,0.001,4175.5,4175.4,0.61166163]
[1759224525244,0.001,4175.5,4175.4,3.00664175]
[1759224525645,0.002,4175.5,4175.4,3.00664175]
[1759224529847,0.002,4175.5,4175.4,3.03059155]
[1759224530574,0.002,4175.5,4175.4,3.12660357]
[1759224530742,0.002,4175.5,4175.4,3.10265377]
[1759224531178,0.002,4175.5,4175.4,3.92632771]
[1759224536897,0.002,4175.5,4175.4,3.95027751]
[1759224537093,0.002,4175.5,4175.4,3.92632771]
[1759224537698,0.002,4175.5,4175.4,6.25426549]
[1759224537901,0.002,4175.5,4175.4,6.32631457]
[1759224541713,0.002,4175.5,4175.4,7.11831457]
[1759224543199,0.002,4175.5,4175.4,7.12311457]
[1759224544086,0.001,4175.9,4175.7,0.792]
[1759224544422,0.001,4175.9,4175.8,8.7838982]
[1759224544603,0.001,4175.9,4175.8,8.7599507]
[1759224544913,0.001,4175.9,4175.8,8.8559376]
[1759224545295,0.001,4175.9,4175.8,8.0639376]
[1759224546997,0.001,4175.9,4175.8,5.3299376]
[1759224547204,0.001,4175.9,4175.8,8.0639376]
[1759224547396,0.001,4175.9,4175.8,7.9679507]
[1759224548513,0.001,4175.9,4175.8,5.5679507]
[1759224548735,0.001,4175.9,4175.8,5.2487507]
[1759224548891,0.001,4175.9,4175.8,2.5147507]
[1759224549092,0.001,4175.9,4175.8,5.2487507]
[1759224549288,0.001,4175.9,4175.8,2.854]
[1759224549600,0.001,4175.9,4175.8,5.2487507]
[1759224554732,0.002,4175.9,4175.8,5.2487507]
[1759224556343,0.002,4175.9,4175.8,5.2477507]
[1759224556942,0.002,4175.9,4175.8,5.2467507]
[1759224560657,0.002,4175.9,4175.8,6.01110821]
[1759224565531,0.002,4175.9,4175.8,6.1071087]
[1759224568358,1e-08,4176.0,4175.9,2.39469335]
[1759224568676,1e-08,4176.0,4175.9,4.81864028]
[1759224569047,1e-08,4176.0,4175.9,4.91462718]
[1759224569276,1e-08,4176.0,4175.9,5.83472912]
[1759224570980,1e-08,4176.0,4175.9,6.62672912]
[1759224571971,0.002,4176.4,4176.3,2.39446399]
[1759224572191,0.002,4176.4,4176.3,7.67040862]
[1759224572343,0.002,4176.4,4176.3,7.64646399]
[1759224572549,0.002,4176.4,4176.3,8.4108215]
[1759224573054,0.002,4176.4,4176.3,5.6788215]
[1759224573291,0.002,4176.4,4176.3,8.50679827]
[1759224579413,1e-08,4176.5,4176.4,5.58640666]
[1759224580283,1e-08,4176.5,4176.4,5.68237905]
[1759224580615,1e-08,4176.5,4176.4,6.62642792]
[1759224585443,0.00100001,4176.5,4176.4,6.62642792]
[1759224591135,1e-08,4176.9,4176.4,6.62642792]
[1759224591337,1e-08,4176.9,4176.8,3.30617736]
[1759224591537,1e-08,4176.9,4176.8,9.20053487]
[1759224592246,1e-08,4176.9,4176.8,9.29649345]
[1759224597322,0.001,4177.0,4176.9,4.79412004]
[1759224598032,0.001,4177.0,4176.9,4.89007309]
[1759224600455,0.001,4178.4,4177.0,0.792]
[1759224600655,0.001,4178.4,4178.3,2.39331785]
[1759224600859,0.001,4178.4,4178.3,5.12231785]
[1759224601647,0.001,4178.4,4178.3,5.84187431]
[1759224602357,0.001,4178.4,4178.3,0.71955646]
[1759224602542,0.001,4178.4,4178.3,3.11287431]
[1759224602745,0.001,4178.4,4178.3,2.39331785]
[1759224604473,0.001,4178.4,4178.3,0.47492225]
[1759224604845,0.001,4178.4,4178.0,2.39344029]
[1759224605168,0.001,4178.4,4178.0,2.39348219]
[1759224605457,0.001,4178.4,4178.1,2.3934303]
[1759224605667,0.001,4178.4,4177.8,2.729]
[1759224605851,0.001,4178.4,4178.0,2.39348594]
[1759224606227,0.24040903,4178.4,4178.0,0.47212723]
[1759224606432,0.24040903,4178.4,4177.8,5.12255988]
[1759224606632,0.24040903,4178.4,4177.6,2.729]
[1759224606633,2.63368251,4178.4,4177.6,2.729]
[1759224606860,0.24040903,4178.4,4177.8,2.39360126]
[1759224608165,0.24040903,4178.4,4178.0,2.39344593]
[1759224608464,0.001,4178.4,4178.0,2.39344593]
[1759224608672,0.001,4178.4,4178.1,0.02393432]
[1759224608964,0.001,4178.4,4178.3,2.39331785]
[1759224610138,0.002,4178.4,4178.3,2.39331785]
[1759224610337,0.002,4178.4,4178.3,2.51331785]
[1759224610868,0.002,4178.4,4178.3,2.53725102]
[1759224611372,0.002,4178.4,4178.3,3.30160853]
[1759224611576,0.002,4178.4,4178.3,3.27767536]
[1759224615877,0.002,4178.4,4178.3,3.30160853]
[1759224616243,0.002,4178.4,4178.3,3.27767536]
[1759224619398,0.002,4178.4,4178.3,3.99720076]
[1759224627419,0.002,4178.4,4178.3,6.42113393]
[1759224627600,0.002,4178.4,4178.3,7.18920076]
[1759224627801,0.001,4178.9,4178.4,4.79326057]
[1759224628001,0.001,4178.9,4178.7,2.4]
[1759224628193,0.001,4178.9,4178.5,4.46304887]
[1759224628194,0.001,4178.9,4178.8,7.64003149]
[1759224628523,0.001,4178.9,4178.8,8.35945681]
[1759224629292,0.01,4180.6,4180.5,2.39205836]
[1759224629499,0.01,4180.6,4180.5,5.62139633]
[1759224629698,0.01,4180.6,4180.5,5.59747575]
[1759224629898,0.01,4180.6,4180.5,5.11905836]
[1759224630203,0.01,4180.6,4179.9,2.727]
[1759224630403,0.01,4180.6,4180.0,2.39234449]
[1759224630615,0.01,4180.6,4179.9,3.44625111]
[1759224630811,0.01,4180.6,4180.0,0.47736516]
[1759224631018,2.39210007,4180.5,4179.7,2.39249511]
[1759224631216,0.24021001,4180.4,4179.8,2.39245551]
[1759224631492,2.40200192,4180.6,4179.8,2.39245551]
[1759224631697,2.40200192,4180.6,4179.7,2.39250078]
[1759224632037,2.39211786,4180.4,4179.7,0.48262397]
[1759224632210,1.28266948,4183.2,4179.8,4.97692458]
[1759224632400,2.39110764,4182.2,4180.1,0.792]
[1759224632728,2.39126856,4181.9,4180.3,2.4]
[1759224632929,2.39126197,4181.9,4180.1,2.4]
[1759224633101,2.39126197,4181.9,4179.3,2.14244629]
[1759224633102,2.39126491,4181.9,4180.8,2.39184421]
[1759224633302,0.71919076,4182.0,4180.8,2.86193016]
[1759224633303,2.39133016,4181.8,4180.8,2.86193016]
[1759224633512,2.39139563,4181.7,4180.8,0.47008595]
[1759224633718,0.23913956,4181.6,4180.9,2.39182919]
[1759224633918,0.23913956,4181.6,4180.9,2.39181952]
[1759224634124,0.23913956,4181.6,4181.0,2.39177042]
[1759224634326,0.71919076,4182.0,4180.8,2.39185294]
[1759224634530,2.39132275,4181.8,4180.7,2.39194393]
[1759224634731,2.39132275,4181.8,4180.9,2.39178101]
[1759224634938,2.39141405,4181.7,4180.8,2.39187336]
[1759224635125,2.39143378,4181.6,4180.6,5.16498428]
[1759224635329,0.23914338,4181.5,4180.6,5.64180172]
[1759224635529,0.23914338,4181.5,4180.9,2.39178014]
[1759224635847,0.23914338,4181.5,4180.8,2.39183177]
[1759224636036,0.23914338,4181.5,4180.7,2.39192176]
[1759224636213,0.23914338,4181.5,4181.0,2.3917651]
[1759224636412,0.26305251,4181.4,4180.7,2.39192176]
[1759224636614,0.26305251,4181.4,4180.9,2.39177861]
[1759224637346,0.26305251,4181.4,4180.9,2.3917859]
[1759224637552,0.26305251,4181.4,4180.7,2.39194393]
[1759224637847,0.26305251,4181.4,4181.0,2.39175017]
[1759224638152,3.1103975,4182.0,4181.0,2.39175864]
[1759224638333,2.39125756,4181.9,4181.0,2.39175864]
[1759224638537,3.1103975,4182.0,4181.0,2.39175864]
[1759224638736,2.39136954,4181.8,4181.0,2.39175864]
[1759224638919,2.39138794,4181.7,4181.0,2.39175864]
[1759224639121,0.23913879,4181.6,4181.0,2.39175864]
[1759224639448,0.23913879,4181.6,4181.3,0.1192]
[1759224639748,0.1192,4181.9,4181.3,0.1192]
[1759224639946,2.77,4181.8,4181.3,0.1192]
[1759224640660,2.39147709,4181.6,4181.3,0.1192]
[1759224641322,2.768,4181.8,4181.3,0.1192]
[1759224641523,0.83839249,4181.9,4181.3,0.1192]
[1759224641524,2.768,4181.7,4181.3,0.1192]
[1759224641725,0.36063925,4181.6,4181.3,0.1192]
[1759224643550,2.75208425,4181.6,4181.3,0.1192]
[1759224643760,3.12663925,4181.6,4181.3,0.1192]
[1759224644683,2.766,4181.6,4181.3,0.1192]
[1759224644952,2.765,4181.8,4181.3,0.1192]
[1759224645449,0.83839249,4181.9,4181.3,0.1192]
[1759224645661,2.8842,4181.9,4181.3,2.51075943]
[1759224645818,2.8842,4181.9,4181.3,0.1192]
[1759224646025,0.36033821,4181.8,4181.3,0.1192]
[1759224646856,0.36033821,4181.8,4181.3,2.51078787]
[1759224647057,0.36033821,4181.8,4181.3,0.1192]
[1759224647363,0.36033821,4181.8,4181.3,2.51078414]
[1759224647522,0.36033821,4181.8,4181.3,0.1192]
[1759224647722,0.36033821,4181.8,4181.3,2.51079242]
[1759224647930,0.36033821,4181.8,4181.3,2.51078005]
[1759224648162,0.36033821,4181.8,4181.3,2.53469605]
[1759224648492,0.36033821,4181.8,4181.3,0.1192]
[1759224648695,2.764,4181.9,4181.4,0.02391543]
[1759224648991,2.763,4181.8,4181.6,0.1192]
[1759224649352,0.71914939,4181.9,4181.6,0.1192]
[1759224649766,2.763,4181.9,4181.6,0.1192]
[1759224649972,0.001,4181.8,4181.6,0.1192]
[1759224651150,0.001,4181.8,4181.7,2.39137193]
[1759224652790,0.001,4181.8,4181.6,2.53452412]
[1759224652977,0.001,4181.8,4181.6,0.14311429]
[1759224653282,0.001,4181.8,4181.7,2.41528564]
[1759224653887,0.002,4181.8,4181.7,2.41528564]
[1759224654177,0.002,4181.8,4181.7,2.88396265]
[1759224654381,0.002,4181.8,4181.7,5.64496265]
[1759224654586,0.002,4181.8,4181.7,0.49259072]
[1759224654749,0.002,4181.8,4181.7,2.765]
[1759224655152,0.002,4181.8,4181.4,5.15553412]
[1759224655346,0.002,4181.8,4181.4,2.764]
[1759224655551,0.002,4181.8,4181.7,2.39137193]
[1759224655853,0.002,4181.8,4181.6,2.3914096]
[1759224656074,0.002,4181.8,4181.7,0.51554096]
[1759224657623,0.002,4181.8,4181.7,5.30691289]
[1759224657935,0.002,4181.8,4181.7,6.09891289]
[1759224658280,5.40424938,4183.9,4181.7,6.09891289]
[1759224658281,1.28266948,4185.7,4182.2,3.42308603]
[1759224658585,0.634,4184.3,4182.8,2.4]
[1759224658785,7.79321229,4186.0,4183.9,2.39010631]
[1759224658985,2.99099435,4185.9,4183.7,2.39022235]
[1759224659311,5.40424938,4185.2,4183.1,0.792]
[1759224659507,5.40424938,4184.8,4182.9,2.4]
[1759224659734,5.40424938,4184.8,4183.7,2.39018403]
[1759224659879,2.778,4184.7,4183.5,2.39034153]
[1759224660080,2.778,4184.7,4183.8,2.3901657]
[1759224660280,2.778,4184.7,4183.5,2.39030642]
[1759224660281,5.40424938,4184.4,4183.5,2.39030642]
[1759224660600,5.40424938,4184.4,4182.6,2.4]
[1759224660601,0.54042494,4184.3,4183.7,2.39018165]
[1759224660797,0.54042494,4184.3,4182.6,2.39085736]
[1759224660798,0.54042494,4184.3,4183.9,2.39010902]
[1759224660984,5.40424938,4184.8,4183.9,2.39010902]
[1759224661185,2.779,4184.7,4184.0,2.39005244]
[1759224661390,3.192,4185.0,4184.0,2.39005244]
[1759224661591,2.779,4184.9,4184.0,2.39005244]
[1759224661807,3.192,4185.0,4184.0,2.39005244]
[1759224662010,0.91366743,4184.9,4184.0,2.39005244]
[1759224662390,2.778,4184.8,4184.0,2.39005244]
[1759224662587,0.91366743,4184.9,4183.7,0.02390228]
[1759224662808,2.777,4184.8,4183.6,2.41418339]
[1759224663015,2.777,4184.7,4183.6,0.02390285]
[1759224663210,0.36906674,4184.6,4183.9,2.3901056]
[1759224663410,0.36906674,4184.6,4184.0,2.39005009]
[1759224663825,0.36906674,4184.6,4183.8,0.02390171]
[1759224664130,0.36906674,4184.6,4183.2,0.02390514]
[1759224664306,0.85503161,4184.5,4184.0,0.1192]
[1759224664505,2.776,4184.4,4184.0,0.1192]
[1759224664700,2.776,4184.4,4184.0,2.50925511]
[1759224665311,2.776,4184.4,4184.0,0.1192]
[1759224665625,2.776,4184.3,4184.0,0.1192]
[1759224665807,0.001,4184.4,4184.0,0.1192]
[1759224666130,2.775,4184.3,4184.0,0.1192]
[1759224666310,0.001,4184.4,4184.0,0.1192]
[1759224666505,2.775,4184.3,4184.0,0.1192]
[1759224666920,0.001,4184.4,4184.0,0.1192]
[1759224667197,2.774,4184.3,4184.0,0.1192]
[1759224667401,2.774,4184.2,4184.1,2.38999128]
[1759224668201,0.001,4184.2,4184.1,2.38999128]
[1759224668603,2.774,4184.2,4184.1,2.50919128]
[1759224668999,0.001,4184.2,4184.1,2.50919128]
[1759224669331,2.774,4184.2,4184.1,0.1192]
[1759224669534,2.774,4184.2,4184.1,2.50920023]
[1759224669913,0.001,4184.2,4184.1,2.50920023]
[1759224670112,2.774,4184.2,4184.1,2.50920023]
[1759224670421,0.001,4184.2,4184.1,2.50920023]
[1759224670627,2.774,4184.2,4184.1,2.50920023]
[1759224671133,2.773,4184.2,4184.1,2.50920023]
[1759224671499,0.001,4184.2,4184.1,2.50920023]
[1759224671934,2.773,4184.2,4184.1,2.50920023]
[1759224672233,2.773,4184.2,4184.1,0.1192]
[1759224672401,2.773,4184.2,4184.1,2.50920023]
[1759224673331,2.772,4184.2,4184.1,2.50920023]
[1759224673532,2.771,4184.2,4184.1,2.50920023]
[1759224674326,2.771,4184.2,4184.1,0.1192]
[1759224675530,2.771,4184.2,4183.1,2.39052322]
[1759224675531,5.68274938,4184.2,4183.5,2.39030103]
[1759224675828,2.769,4184.1,4183.8,0.1192]
[1759224677005,2.769,4184.0,4183.8,0.1192]
[1759224678134,2.769,4183.9,4183.8,0.1192]
[1759224679837,2.768,4183.9,4183.8,0.1192]
[1759224680444,0.001,4184.2,4183.8,0.1192]
[1759224680763,2.767,4184.1,4183.8,0.1192]
[1759224681325,0.001,4184.2,4183.8,0.1192]
[1759224681538,2.767,4184.1,4183.8,0.1192]
[1759224681834,0.001,4184.2,4183.9,0.02390114]
[1759224682039,2.766,4184.1,4183.9,2.41400613]
[1759224682247,0.001,4184.2,4183.9,2.41401213]
[1759224682535,2.769,4184.1,4184.0,2.39005736]
[1759224682732,0.001,4184.2,4183.8,2.39012281]
[1759224682950,2.769,4184.1,4183.9,2.6530188]
[1759224683153,0.001,4184.2,4183.9,2.6530188]
[1759224683368,2.768,4184.1,4184.0,2.39005374]
[1759224683527,2.768,4184.1,4183.9,2.65300926]
[1759224684034,2.768,4184.1,4183.9,0.23901228]
[1759224684357,2.768,4184.0,4183.7,2.39017853]
[1759224684529,2.768,4184.0,4182.3,2.39102838]
[1759224684530,2.768,4184.0,4183.5,2.39030759]
[1759224685055,2.768,4184.0,4183.4,2.39038723]
[1759224685222,0.001,4184.2,4183.7,2.39020849]
[1759224685425,2.767,4184.1,4183.9,2.39011354]
[1759224685652,2.767,4184.1,4184.0,0.23901135]
[1759224686159,2.767,4184.1,4184.0,0.26291192]
[1759224686455,0.001,4184.2,4184.0,0.26291192]
[1759224686766,2.766,4184.1,4184.0,2.65296881]
[1759224686964,2.766,4184.1,4184.0,0.26291192]
[1759224687128,0.001,4184.2,4184.0,0.26291192]
[1759224687562,2.766,4184.1,4184.0,0.26291192]
[1759224688063,2.766,4184.1,4184.0,2.62906871]
[1759224688470,2.766,4184.1,4184.0,0.23901135]
[1759224688629,2.766,4184.1,4183.0,0.47882409]
[1759224688829,2.766,4184.1,4183.1,2.4]
[1759224689064,2.766,4184.1,4182.9,2.4]
[1759224689267,2.766,4184.1,4183.8,0.002]
[1759224691036,0.001,4184.2,4183.8,0.002]
[1759224691241,2.767,4184.0,4183.8,0.002]
[1759224691740,0.001,4184.2,4183.8,0.002]
[1759224692060,2.767,4183.9,4183.8,0.002]
[1759224692251,4.66140803,4184.2,4183.8,0.002]
[1759224692252,7.05135919,4184.2,4183.8,0.002]
[1759224692452,2.766,4184.1,4183.8,0.1212]
[1759224692852,4.66040803,4183.9,4183.8,0.1212]
[1759224693956,7.05052251,4183.9,4183.8,0.1212]
[1759224694993,9.81552251,4183.9,4183.8,0.1212]
[1759224695192,9.81552251,4183.9,4183.8,0.002]
[1759224695362,11.13062999,4183.9,4183.8,0.002]
[1759224696975,11.12962999,4183.9,4183.8,0.002]
[1759224697472,8.36562999,4183.9,4183.8,0.002]
[1759224697659,11.12862999,4183.9,4183.8,0.002]
[1759224698884,13.52862999,4183.9,4183.8,0.002]
[1759224700966,14.32062999,4183.9,4183.8,0.002]
[1759224702608,11.55762999,4183.9,4183.8,0.002]
[1759224703110,14.31962999,4183.9,4183.8,0.002]
[1759224705190,14.31762999,4183.9,4183.8,0.002]
[1759224706594,11.55762999,4183.9,4183.8,0.002]
[1759224706806,14.31762999,4183.9,4183.8,0.002]
[1759224706989,11.55762999,4183.9,4183.8,0.002]
[1759224707190,14.31762999,4183.9,4183.8,0.002]
[1759224708720,11.55762999,4183.9,4183.8,0.002]
[1759224708926,14.31662999,4183.9,4183.8,0.002]
[1759224709221,14.31762999,4183.9,4183.8,0.002]
[1759224710122,2.39028587,4183.6,4181.7,2.86801213]
[1759224710324,2.39095788,4182.5,4181.7,2.39132012]
[1759224710522,2.758,4182.4,4181.7,2.39132012]
[1759224710730,5.1489885,4182.4,4181.6,2.39142446]
[1759224710928,2.758,4182.4,4182.3,0.1192]
[1759224711096,5.14897169,4182.4,4182.3,0.1192]
[1759224711297,2.758,4182.4,4182.3,0.1192]
[1759224711898,4.66040803,4182.7,4182.3,0.1192]
[1759224712095,5.14786009,4182.6,4182.3,0.1192]
[1759224713246,5.14789888,4182.6,4182.3,0.1192]
[1759224713607,2.39091665,4182.5,4182.3,0.1192]
[1759224713930,2.757,4182.4,4182.3,0.1192]
[1759224714326,5.14797169,4182.4,4182.3,0.1192]
[1759224714639,2.757,4182.4,4182.3,0.1192]
[1759224715936,2.756,4182.4,4182.3,0.1192]
[1759224719174,2.39123663,4182.0,4181.7,0.48673092]
[1759224719370,7.41440803,4181.9,4181.7,0.48673092]
[1759224719585,9.80568167,4181.9,4181.1,2.39169533]
[1759224719750,9.80568167,4181.9,4180.9,2.39177635]
[1759224719956,9.80568167,4181.9,4181.1,2.39168717]
[1759224720158,2.39132367,4181.8,4181.0,2.39175874]
[1759224720344,2.754,4181.7,4181.0,0.23917587]
[1759224720546,2.754,4181.6,4181.0,2.39173704]
[1759224720752,2.754,4181.5,4181.1,2.39169744]
[1759224720949,2.754,4181.4,4181.1,2.39169744]
[1759224721265,2.754,4181.4,4180.8,2.39188615]
[1759224721444,2.754,4181.4,4181.1,2.39170365]
[1759224721643,2.754,4181.4,4181.1,0.47835898]
[1759224722377,2.754,4181.4,4180.7,2.39194393]
[1759224722547,2.754,4181.4,4180.7,2.4]
[1759224722746,2.754,4181.4,4180.8,2.3918314]
[1759224722942,2.754,4181.4,4180.7,2.4]
[1759224723176,5.14555156,4181.4,4180.6,2.86391111]
[1759224723376,5.14555156,4181.4,4180.6,0.99752007]
[1759224723377,2.754,4181.4,4180.6,0.99752007]
[1759224723579,7.05205616,4181.3,4180.6,0.99752007]
[1759224723796,2.753,4181.2,4180.6,0.99752007]
[1759224724092,2.753,4181.2,4180.6,3.38951803]
[1759224724921,2.753,4181.2,4180.6,3.38950818]
[1759224725264,2.753,4181.2,4180.6,0.99752007]
[1759224725961,5.14467111,4181.2,4180.6,0.99752007]
[1759224726162,2.753,4181.2,4180.6,0.99752007]
[1759224726359,2.753,4181.2,4180.6,0.47191676]
[1759224726596,5.1446646,4181.2,4180.6,0.47191676]
[1759224727279,2.39173899,4181.1,4180.6,0.47191676]
[1759224727490,2.752,4181.0,4180.6,0.47191676]
[1759224727805,2.752,4180.9,4180.6,0.47191676]
[1759224727976,2.752,4180.8,4180.6,0.47191676]
[1759224729267,2.752,4180.8,4180.7,0.1192]
[1759224729669,5.14388672,4180.8,4180.7,0.1192]
[1759224731206,2.752,4180.8,4180.7,0.1192]
[1759224731711,5.14388672,4180.8,4180.7,0.1192]
[1759224733307,5.89745289,4180.8,4180.7,0.1192]
[1759224733527,5.89745289,4180.8,4180.6,0.002]
[1759224733528,2.39194393,4180.7,4180.6,0.002]
[1759224735924,4.91114393,4180.7,4180.6,0.002]
[1759224739538,5.70314393,4180.7,4180.6,0.002]
[1759224741913,10.36355196,4180.7,4180.6,0.002]
[1759224742123,12.08558639,4180.7,4180.6,0.002]
[1759224743712,14.83358639,4180.7,4180.6,0.002]
[1759224744844,12.08558639,4180.7,4180.6,0.002]
[1759224745017,14.83358639,4180.7,4180.6,0.002]
[1759224745554,14.83258639,4180.7,4180.6,0.002]
[1759224748127,14.83158639,4180.7,4180.6,0.002]
[1759224748323,10.17117836,4180.7,4180.6,0.002]
[1759224749921,7.42517836,4180.7,4180.6,0.002]
[1759224750125,9.28324441,4180.7,4180.6,0.002]
[1759224750333,6.53724441,4180.7,4180.6,0.002]
[1759224750655,4.91114393,4180.7,4180.6,0.002]
[1759224750861,7.65714393,4180.7,4180.6,0.002]
[1759224751653,4.91114393,4180.7,4180.6,0.002]
[1759224751819,7.65714393,4180.7,4180.6,0.002]
[1759224755342,7.65514393,4180.7,4180.6,0.002]
[1759224755636,8.659847,4180.7,4180.6,0.002]
[1759224758663,9.451847,4180.7,4180.6,0.002]
[1759224759356,9.573847,4180.7,4180.6,0.002]
[1759224761668,6.829847,4180.7,4180.6,0.002]
[1759224761871,9.571847,4180.7,4180.6,0.002]
[1759224765954,6.037847,4180.7,4180.6,0.002]
[1759224766152,7.77414393,4180.7,4180.6,0.002]
[1759224766552,7.65214393,4180.7,4180.6,0.002]
[1759224768552,7.65114393,4180.7,4180.6,0.002]
[1759224772174,4.91114393,4180.7,4180.6,0.002]
[1759224772382,8.44214393,4180.7,4180.6,0.002]